Cogmind - Beta 16 @@@ ROGUE MODE // 2025.11.30 @ 15:08:32 Player: whodovoodoo Result: Destroyed by Y-45 Defender with Beam Rifle Performance ------------- Evolutions (1) 500 Regions Visited (4) 800 Robots Destroyed (6) 30 Value Destroyed (186) 186 Prototype IDs (0) 0 Alien Tech Used (0) 0 Bonus (0) 0 TOTAL SCORE: 1516 Bonus ------- None Cogmind --------- Core Integrity 0/400 Matter 300/300 Energy 99/100 System Corruption 0% Temperature Cool (9) Movement Core (250) Ox4 Location -9/Storage Parts ------- > --- POWER (1) -------- (None) > --- PROPULSION (2) --- (None) > --- UTILITY (3) ------ Medium Storage Unit Utility Shielding > --- WEAPON (3) ------- Medium Laser > --- INVENTORY (10) --- Light Ion Engine Light Ion Engine Light Treads Improved Treads Improved Treads Improved Treads Wheel Peak State ------------ > --- POWER ------------ Ion Engine > --- PROPULSION ------- Improved Treads Improved Treads > --- UTILITY ---------- Medium Storage Unit Utility Shielding > --- WEAPON ----------- Small Laser Beam Rifle Light Cannon > --- INVENTORY -------- Light Ion Engine Light Ion Engine Light Ion Engine Light Treads Light Treads Light Treads Aluminum Leg Aluminum Leg Medium Laser Enhanced Flamer [Rating: 12] Favorites ----------- Power Ion Engine Engine Ion Engine Propulsion Light Treads Treads Light Treads Utility Medium Storage Unit Storage Medium Storage Unit Protection Utility Shielding Weapon Medium Laser Energy Gun Medium Laser Ballistic Cannon Light Cannon Special Weapon Enhanced Flamer Build | -11 -10 -10 -9 -9 ------- Run | Yrd Mat Min Mat Sto Slots Evolved 2 | . . . 2 . Power . | . . . . . Propulsion . | . . . . . Utility 1 | . . . 1 . Weapon 1 | . . . 1 . Parts Attached 16 | 6 1 2 4 3 Power 2 | 1 . . . 1 Engine 2 | 1 . . . 1 Core . | . . . . . Reactor . | . . . . . Propulsion 5 | 2 . . 2 1 Treads 5 | 2 . . 2 1 Leg . | . . . . . Wheel . | . . . . . Hover . | . . . . . Flight . | . . . . . Utility 3 | 1 1 1 . . Device . | . . . . . Storage 2 | 1 1 . . . Processor . | . . . . . Hackware . | . . . . . Protection 1 | . . 1 . . Artifact . | . . . . . Weapon 6 | 2 . 1 2 1 Energy Gun 4 | 2 . . 2 . Energy Cannon . | . . . . . Ballistic Gun . | . . . . . Ballistic Cannon 1 | . . 1 . . Launcher . | . . . . . Special Weapon 1 | . . . . 1 Impact Weapon . | . . . . . Slashing Weapon . | . . . . . Piercing Weapon . | . . . . . Special Melee Weapon . | . . . . . Unidentified Prototypes . | . . . . . Parts Lost 7 | . . . . 7 Power 2 | . . . . 2 Propulsion 2 | . . . . 2 Utility . | . . . . . Weapon 3 | . . . . 3 Highest Loss Streak 3 | . . . . 3 To Critical Strikes . | . . . . . Average Backups 7 | 3 6 6 9 8 Power 2 | 1 3 3 3 2 Propulsion 3 | 1 2 2 4 4 Utility . | . . . . . Weapon 1 | . 1 1 1 1 Tool/Special . | . . . . . Unused Backups 9 | . . . 3 6 Power 2 | . . . . 2 Propulsion 7 | . . . 3 4 Utility . | . . . . . Weapon . | . . . . . Tool/Special . | . . . . . Average Slot Usage (%) 85 | . 85 94 88 72 Engine 11 | . 14 14 11 8 Treads 23 | . 28 28 22 17 Storage 12 | . 14 14 11 11 Protection 9 | . . 8 11 11 Energy Gun 20 | . 28 19 22 16 Ballistic Cannon 8 | . . 8 11 6 Peak Build Rating 12 | 6 7 8 12 12 Average Rating 8 | 5 6 6 11 9 On Entrance 6 | . 6 6 8 12 Avg Prop Armor Cover (%) . | . . . . . Naked Turns . | . . . . . Heaviest Build 23 | 14 19 21 23 23 Greatest Support 46 | 40 40 40 46 46 Greatest Overweight (x) 4 | . . . . 4 Average Overweight (x) . | . . . . . Largest Inventory Capacity 10 | 8 10 10 10 10 Average Capacity 9 | 7 8 10 10 10 Most Carried 10 | 6 6 8 10 10 Average Carried 7 | 3 6 6 9 8 Final Capacity 10 | 8 10 10 10 10 Final Carried 10 | 6 6 8 10 7 Class Distribution -------------------- 60% | Mutant 39% | Tank Dominant Class ---------------- Mutant | -10/Materials Mutant | -10/Mines Tank | -9/Materials Mutant | -9/Storage Resources | -11 -10 -10 -9 -9 ----------- Run | Yrd Mat Min Mat Sto Matter Collected 360 | 260 . 20 . 80 Remotely . | . . . . . Salvage Created 214 | 83 . . . 131 Parts 7 | 4 . . . 3 Haulers Intercepted . | . . . . . Recyclers Shooed 1 | . . . . 1 Parts Field Recycled . | . . . . . Retrieved Matter . | . . . . . Parts Self-Destructed . | . . . . . Prevented . | . . . . . Parts Restored . | . . . . . Kills | -11 -10 -10 -9 -9 ------- Run | Yrd Mat Min Mat Sto Combat Hostiles Destroyed 4 | . . . . 4 Cannons 3 | . . . . 3 Classes Destroyed 5 | 2 . . . 3 Tunneler 1 | 1 . . . . Recycler 1 | 1 . . . . Grunt 1 | . . . . 1 Duelist 2 | . . . . 2 Sentry 1 | . . . . 1 Best Kill Streak 2 | 2 . . . 2 Combat Bots Only 2 | . . . . 2 Max Kills in Single Turn 1 | 1 . . . 1 Gunslinging . | . . . . . Exploded . | . . . . . Melee . | . . . . . Uniques/NPCs Destroyed . | . . . . . Combat | -11 -10 -10 -9 -9 -------- Run | Yrd Mat Min Mat Sto Hostile Shots Fired 137 | . . . 20 117 Missed 37 | . . . 6 31 Hits 100 | . . . 14 86 Melee 4 | . . . . 4 Projectile 96 | . . . 14 82 Critical Strikes 2 | . . . . 2 Damage Taken 1342 | . . . 184 1158 Core 410 | . . . 55 355 Absorbed by Shields . | . . . . . Redirected to Shielding 27 | . . . . 27 Core Remaining (%) 100 | 100 . 100 . . Volleys Fired 24 | 5 . . . 19 Largest 3 | 2 . . . 3 Hottest 130 | 100 . . . 130 Shots Fired 49 | 10 . . . 39 Gun 31 | 10 . . . 21 Cannon 9 | . . . . 9 Launcher . | . . . . . Special 9 | . . . . 9 Kinetic 9 | . . . . 9 Thermal 40 | 10 . . . 30 Explosive . | . . . . . Electromagnetic . | . . . . . Robot Hit Streak 10 | 4 . . . 10 Robot Miss Streak 2 | 2 . . . 2 Penetration Max . | . . . . . Secondary Targets . | . . . . . Shots Hit Robots 38 | 6 . . . 32 Core Hits 13 | 3 . . . 10 Critical Kills . | . . . . . Critical Parts Destroyed . | . . . . . Critical Strikes 4 | 1 . . . 3 Burn 4 | 1 . . . 3 Melee Attacks . | . . . . . Impact . | . . . . . Slashing . | . . . . . Piercing . | . . . . . Sneak Attacks . | . . . . . Combat Hostiles . | . . . . . Follow-up Attacks . | . . . . . Damage Inflicted 555 | 76 . 7 7 465 Guns 303 | 76 . . . 227 Cannons 141 | . . . . 141 Explosions . | . . . . . Melee . | . . . . . Ramming 26 | . . 7 7 12 Kinetic 141 | . . . . 141 Thermal 388 | 76 . . . 312 Explosive . | . . . . . Electromagnetic . | . . . . . Impact . | . . . . . Slashing . | . . . . . Piercing . | . . . . . Highest Corruption . | . . . . . Average Corruption . | . . . . . Corruption Purged . | . . . . . Corruption Blocked . | . . . . . Overload Shots . | . . . . . Overflow Damage . | . . . . . Projectiles . | . . . . . Explosions . | . . . . . Melee . | . . . . . Knockbacks 3 | . . . . 3 Impact . | . . . . . Kinetic 2 | . . . . 2 Secondary 1 | . . . . 1 Self-Inflicted Damage . | . . . . . Shots . | . . . . . Rammed 8 | . . 2 3 3 Targets Rammed 8 | . . 2 3 3 Kicked . | . . . . . Crushed . | . . . . . Highest Temperature 319 | 117 . . . 319 Average Temperature 107 | 51 . . . 122 Received Heat Transfer 543 | . . . 108 435 Siege Activations . | . . . . . Martial Activations . | . . . . . Shielding Activations . | . . . . . Robots Disrupted 2 | . . . . 2 Combat Hostiles 2 | . . . . 2 Robots Corrupted . | . . . . . Combat Hostiles . | . . . . . Parts Fried . | . . . . . Impact Corruptions . | . . . . . Robots Melted 1 | . . . . 1 Combat Hostiles 1 | . . . . 1 Parts Melted 1 | 1 . . . . Heat Transferred 1763 | 296 . . . 1467 Parts Sabotaged . | . . . . . Parts Stolen . | . . . . . Parts Stripped . | . . . . . Power Chain Reactions . | . . . . . Alert | -11 -10 -10 -9 -9 ------- Run | Yrd Mat Min Mat Sto Maximum Alert Level . | . . . . . Low Security (%) 100 | 100 100 100 100 100 Level 1 . | . . . . . Level 2 . | . . . . . Level 3 . | . . . . . Level 4 . | . . . . . Level 5 . | . . . . . High Security . | . . . . . Max Security . | . . . . . Peak Influence 100 | 10 . . 15 100 Initial . | . . . . . Average 7 | 1 . . . 29 Influence Increases 210 | 10 . . 15 185 Destroy 0b10 Robot/C 80 | . . . . 80 Destroy 0b10 Robot/NC 10 | 10 . . . . Destroy Leader 30 | . . . . 30 Lose Combat Pursuer 90 | . . . 15 75 Influence Decreases 170 | 10 . . 15 145 Time Decay 110 | 10 . . 15 85 Lost Part 60 | . . . . 60 Squads Dispatched 1 | . . . . 1 Investigation . | . . . . . Extermination . | . . . . . Reinforcement 1 | . . . . 1 Assault . | . . . . . Garrison . | . . . . . Intercept . | . . . . . Searches Triggered . | . . . . . Construction Impeded . | . . . . . Haulers Reinforced . | . . . . . Active Scanning Responses . | . . . . . Cargo Convoy Interrupts . | . . . . . Stealth | -11 -10 -10 -9 -9 --------- Run | Yrd Mat Min Mat Sto Distress Signals 1 | . . . 1 . Communications Jammed . | . . . . . Distress Signals . | . . . . . Times Spotted 26 | . 1 . 7 18 Peak Tracking Total 10 | . 1 . 5 10 Tactical Retreats 3 | . . . 1 2 Traps | -11 -10 -10 -9 -9 ------- Run | Yrd Mat Min Mat Sto Traps Triggered 1 | . . . . 1 Indirectly . | . . . . . Trap Hack Attempts . | . . . . . Triggered . | . . . . . Disarmed . | . . . . . Reprogrammed . | . . . . . Reused . | . . . . . Traps Extracted . | . . . . . Installed . | . . . . . Triggered . | . . . . . Machines | -11 -10 -10 -9 -9 ---------- Run | Yrd Mat Min Mat Sto Machines Disabled . | . . . . . Max in Single Turn . | . . . . . Machines Repaired . | . . . . . Machines Dismantled . | . . . . . Machines Sabotaged . | . . . . . Overloaded Fab Kills . | . . . . . Hacking | -11 -10 -10 -9 -9 --------- Run | Yrd Mat Min Mat Sto Machines Accessed 5 | . 2 . 2 1 Terminals 4 | . 2 . 1 1 Fabricators . | . . . . . Repair Stations . | . . . . . Recycling Units . | . . . . . Scanalyzers 1 | . . . 1 . Garrison Access . | . . . . . Total Hacks 9 | . 2 . 6 1 Successful 5 | . . . 5 . Failed 4 | . 2 . 1 1 Catastrophic 1 | . . . . 1 Database Lockouts . | . . . . . Manual . | . . . . . Terminals 6 | . 2 . 3 1 Fabricators . | . . . . . Repair Stations . | . . . . . Recycling Units . | . . . . . Scanalyzers 3 | . . . 3 . Garrison Access . | . . . . . Terminal Hacks 2 | . . . 2 . Alert Level 1 | . . . 1 . Dispatch Records 1 | . . . 1 . Fabricator Hacks . | . . . . . Repair Station Hacks . | . . . . . Recycling Unit Hacks . | . . . . . Scanalyzer 3 | . . . 3 . Insert Component 1 | . . . 1 . Analyze 1 | . . . 1 . Retrieve Study 1 | . . . 1 . Garrison Access Hacks . | . . . . . Unauthorized Hacks . | . . . . . Terminals . | . . . . . Fabricators . | . . . . . Repair Stations . | . . . . . Recycling Units . | . . . . . Scanalyzers . | . . . . . Garrison Access . | . . . . . Data Cores Recovered . | . . . . . Used . | . . . . . Hacking Detections 5 | . 2 . 2 1 Full Trace Events . | . . . . . Feedback Events . | . . . . . Feedback Blocked . | . . . . . Robot Schematics Acquired . | . . . . . Robots Built . | . . . . . Authchips . | . . . . . Time . | . . . . . Total Robot Build Rating . | . . . . . Part Schematics Acquired 1 | . . . 1 . Parts Built . | . . . . . Authchips . | . . . . . Time . | . . . . . Total Part Build Rating . | . . . . . Part Studies Acquired 1 | . . . 1 . Parts Repaired . | . . . . . Time . | . . . . . Parts Recycled . | . . . . . Recycled Matter . | . . . . . Retrieved Matter . | . . . . . Retrieved Components . | . . . . . Parts Scanalyzed 1 | . . . 1 . Part Schematics Acquired 1 | . . . 1 . Parts Damaged . | . . . . . Bothacking | -11 -10 -10 -9 -9 ------------ Run | Yrd Mat Min Mat Sto Used RIF Installer . | . . . . . Robots Hacked . | . . . . . Non-combat . | . . . . . Combat . | . . . . . Robot Hacks Applied . | . . . . . Relay Couplers Released . | . . . . . Fabnet Peak Effective % . | . . . . . Robots Rewired . | . . . . . Allies Hacked . | . . . . . Hacks Repelled . | . . . . . Allies | -11 -10 -10 -9 -9 -------- Run | Yrd Mat Min Mat Sto Total Allies . | . . . . . Largest Group . | . . . . . Highest-Rated Group . | . . . . . Highest-Rated Ally . | . . . . . Total Orders . | . . . . . Ally Attacks . | . . . . . Total Damage . | . . . . . Kills . | . . . . . Allies Corrupted . | . . . . . Allies Melted . | . . . . . Intel | -11 -10 -10 -9 -9 ------- Run | Yrd Mat Min Mat Sto Active Infowar (turns) . | . . . . . Robot Analysis Total . | . . . . . Derelict Logs Recovered 1 | . . 1 . . Drone Launches . | . . . . . Drone Recoveries . | . . . . . Exploration | -11 -10 -10 -9 -9 ------------- Run | Yrd Mat Min Mat Sto Turns Passed 1138 | 105 82 367 286 298 Spaces Moved 632 | 52 51 225 166 138 Core 10 | 6 . . . 4 Treads 622 | 46 51 225 166 134 Legs . | . . . . . Wheels . | . . . . . Hover . | . . . . . Flight . | . . . . . Fastest Speed 50 | 50 160 160 160 160 Average Speed 159 | 147 160 160 160 162 Slowest Speed 250 | 160 160 160 160 250 Overloaded Moves . | . . . . . Propulsion Burnouts . | . . . . . Robots Hopped . | . . . . . Potential Cave-ins . | . . . . . Cave-ins Triggered . | . . . . . Exploration Rate (%) 23 | 4 16 55 11 31 Regions Visited 4 Branch Regions 2 Pre-discovered Areas . | . . . . . Known Exits Taken . | . . . . . Unknown Exits Taken 4 | 1 1 1 1 . Scrap Searched 1 | . . 1 . . Spaces Dug . | . . . . . Terrain Destroyed . | . . . . . Melee . | . . . . . Projectile . | . . . . . AOE . | . . . . . Terrain Rammed . | . . . . . Walls Destroyed . | . . . . . Machines Disabled . | . . . . . Actions | -11 -10 -10 -9 -9 --------- Run | Yrd Mat Min Mat Sto Total 703 | 68 52 230 186 167 Wait 6 | . . . 6 . Move 628 | 51 50 224 165 138 Hop . | . . . . . Pick Up 13 | 6 . 2 4 1 Fast Attach 8 | 6 1 1 . . Attach 5 | . . . 1 4 Detach . | . . . . . Swap 4 | . . 1 3 . Drop 5 | . 1 . 4 . Fire 24 | 5 . . . 19 Melee . | . . . . . Ram . | . . . . . Kick . | . . . . . Crush 8 | . . 2 3 3 Escape Stasis . | . . . . . Rewire 2 | . . . . 2 Trap . | . . . . . Miscellaneous . | . . . . . Route ------- -11/Scrapyard -10/Materials -10/Mines -9/Materials -9/Storage History --------- Turn | Location | Event 14 | -11/Scrapyard | Discovered new exit (range 15) 106 | -11/Scrapyard | Entered Materials 179 | -10/Materials | Discovered new exit (range 7) 188 | -10/Materials | Entered Mines 318 | -10/Mines | Build established: Mutant 386 | -10/Mines | Learned Materials trap positions 447 | -10/Mines | A weapon hastily lodged in a ceiling crevice suddenly fell to the ground 541 | -10/Mines | Discovered new exit (range 10) 555 | -10/Mines | Entered Materials 555 | -9/Materials | Evolved 2 slots: Utility x1, Weapon x1 556 | -9/Materials | Loaded intel: 24 trap records 834 | -9/Materials | Discovered new exit (range 5) 841 | -9/Materials | Entered Storage 849 | -9/Storage | Build established: Tank 1015 | -9/Storage | Core integrity fell below 50% 1065 | -9/Storage | Core integrity fell below 20% 1068 | -9/Storage | Lost 3 parts (1n2w) 1139 | -9/Storage | Destroyed by Y-45 Defender with Beam Rifle Last Messages --------------- Acquired 22 matter. G-34 Mercenary suffers critical hit (Burn). G-34 Mercenary shuts down. K-01 Serf collects debris. K-01 Serf destroyed. Acquired Wheel. Acquired 30 matter. Y-45 Defender suffers critical hit (Burn). Y-45 Defender critical meltdown. Y-45 Defender suffers critical hit (Burn). Y-45 Defender heat damages Heat Sink. Y-45 Defender shuts down. Y-45 Defender heat spikes uncontrollably. Enh. Flamer destroyed. Y-45 Defender heat damages Imp. Ion Engine. Acquired 28 matter. Attempting to rewire Y-45 Defender. Slammed into M-13 Machinist. Lgt. Ion Engine destroyed. Imp. Treads destroyed. Map ----- +----------------------------------------------------+ | ????????# ## #?????????????????????????? | | ????????# ## """"" #?????????????????????????? | | ????????# ## "???" #?????????????????????????? | | ????????# ## "??"" #?????????????????????????? | | ????????# ## ""??" #?????????????????????????? | | ????????# ## "???" #?????????????????????????? | | ????????# ## """""% #?????????????????????????? | | ????????# ## %% % #######???????????????????? | | ????##### ###+##/##### #???????????????????? | | % % #???????????????????? | | ^% #???????????????????? | | #???????????????????? | | ######################## #???????????????????? | | ?????????????????##????## ##???????????????????? | | ?????????????????# ????# #????????????????????? | | ?????????????????# ??# gg#????????????????????? | | ?????????????????# # Y #????????????????????? | | ?????????????????# + #????????????????????? | | ?????????????????# # #????????????????????? | | ?????????????????# ??#g #????????????????????? | | ?????????????????# ?# #????????????????????? | | ?????????????????# ! ?# #????????????????????? | | ?????????????????# # #????????????????????? | | ?????????????????# # #????????????????????? | | ?????????????????#% + #????????????????????? | | ?????????????????#| #@ #????????????????????? | | ?????????????????# # #????????????????????? | | ?????????????????######?# #????????????????????? | | ????????????????????????# #????????????????????? | | ????????????????????????# #????????????????????? | | ????????????????????????# #????????????????????? | | ????????????????????????# #????????????????????? | | ????????????????????????# #????????????????????? | | ????????????????????????# m????????????????????? | | ????????????????????????? ????????????????????? | | ????????????????????????? ????????????????????? | | ?????????????????????????#####???????????????????? | | ?????????????????????????????????????????????????? | | ?????????????????????????????????????????????????? | | ?????????????????????????????????????????????????? | | ?????????????????????????????????????????????????? | | ?????????????????????????????????????????????????? | | ?????????????????????????????????????????????????? | | ?????????????????????????????????????????????????? | | ?????????????????????????????????????????????????? | | ?????????????????????????????????????????????????? | | ?????????????????????????????????????????????????? | | ?????????????????????????????????????????????????? | | | | | +----------------------------------------------------+ Best States ------------- Heat Dissipation 28 Energy Generation 10 Energy Capacity 250 Matter Stores 300 Matter Capacity 300 Sight Range 16 Terrain Scan Density 10 Utility Shielding 33 Evasion (%) 40 Recoil Reduction 2 Item Schematics ----------------- Lgt. Ion Engine | -9/Materials | Scanalyzed Robot Schematics ------------------ None Fabricated ------------ Nothing Repaired ---------- Nothing Studied --------- Lgt. Cannon | -9/Materials | Hacked Alien Tech Used ----------------- None Achievements -------------- Bumper Bots Item+ Challenges ------------ None Game ------ Seed whodovoodoo Manual? 1 Play Time 00:13:51 Cumulative 39.3 hours Start 2025.11.29 @ 23:29:03 End 2025.11.30 @ 15:08:32 Sessions 3 Manual Loads 0 Difficulty Rogue Special Mode None Game No. 38 Rogue 9 Adventurer 0 Explorer 29 Win Type - Total 0 Types 0/0/0/0/0/0/0/0/0/0 Lore% 4 Gallery% 26 Achievement% 13 Wizard Run 0 Options --------- Layout 1 ASCII 1 Keyboard 1 Movement Vi Keybinds 0 Fullscreen 1 Font 24/Proggy Map View 50x35 Zoom Use 0% Tactical HUD 0 Map Filters NONE Filters NONE Steam 1 RUN: a03c29ee-dfb3-48d7-9a11-c93d2a73c44c